bitfinex-derivatives/quotes_ETHF0:USTF0_20260308
["timestamp","ask_amount","ask_price","bid_price","bid_amount"]
[1773007616755,7.81974417,1925.7,1922.7,7.221]
[1773007616756,5.36701403,1925.3,1923.6,5.22960428]
[1773007616960,12.92322534,1926.3,1923.6,5.22960428]
[1773007616961,6.15422534,1926.6,1925.1,5.22960428]
[1773007617152,5.6215903,1926.9,1925.6,5.09093118]
[1773007617357,5.6215903,1926.9,1925.2,7.22]
[1773007617658,5.36701403,1926.7,1925.2,0.00416245]
[1773007617855,5.36701403,1926.3,1925.2,0.00416245]
[1773007618656,5.36701403,1926.3,1924.5,5.22960428]
[1773007618958,5.36701403,1925.9,1924.5,5.22960428]
[1773007619263,5.36701403,1925.9,1924.0,5.22960428]
[1773007619762,5.36701403,1925.1,1923.6,5.23040428]
[1773007620261,5.36701403,1925.1,1923.6,0.0008]
[1773007620962,5.36701403,1925.1,1923.6,5.23040428]
[1773007621162,5.37126946,1925.1,1923.6,5.23549317]
[1773007622157,0.00425543,1925.1,1923.7,5.22960428]
[1773007622359,9.039,1927.8,1923.9,5.22960428]
[1773007622360,5.36701403,1925.7,1923.9,5.22960428]
[1773007622660,5.36701403,1926.0,1924.3,5.22960428]
[1773007622963,5.36701403,1926.0,1924.2,4.12252004]
[1773007622964,5.90567044,1926.7,1924.5,5.56756536]
[1773007623163,5.90567044,1926.1,1924.6,5.56756536]
[1773007623366,5.91051503,1926.1,1924.6,5.56756536]
[1773007624259,5.90567044,1925.7,1924.2,5.56756536]
[1773007624765,5.90567044,1925.7,1924.6,0.001]
[1773007626461,5.71406752,1926.0,1924.6,5.64411135]
[1773007628065,5.71406752,1926.0,1924.6,0.001]
[1773007628468,5.71406752,1926.0,1924.6,5.64411135]
[1773007629366,5.71406752,1926.0,1924.6,0.001]
[1773007629965,5.71406752,1925.7,1924.6,0.001]
[1773007631270,5.97375752,1925.4,1923.7,5.64311135]
[1773007631665,5.71406752,1924.8,1923.4,5.64311135]
[1773007631866,5.71406752,1925.5,1924.0,5.64311135]
[1773007632365,5.71406752,1925.5,1923.0,7.211]
[1773007632366,5.71406752,1925.0,1923.6,5.64900024]
[1773007632761,5.71406752,1924.8,1923.6,5.64900024]
[1773007635171,5.71406752,1924.8,1923.6,0.00588889]
[1773007635672,5.71406752,1924.8,1923.6,4.75600207]
[1773007636074,5.71406752,1924.8,1923.6,0.00588889]
[1773007636474,5.71406752,1924.8,1923.6,4.75431414]
[1773007638072,5.71406752,1924.8,1923.6,0.00588889]
[1773007638578,5.71406752,1924.6,1923.6,0.00588889]
[1773007638878,5.72047356,1924.6,1923.6,0.00588889]
[1773007639278,5.71406752,1925.0,1923.7,4.52234921]
[1773007639676,5.71406752,1925.9,1923.9,4.42898788]
[1773007640574,5.71847895,1925.9,1924.1,4.33460206]
[1773007640779,5.71406752,1926.5,1924.1,4.33460206]
[1773007640979,5.71406752,1926.5,1924.3,4.33019063]
[1773007641381,5.71406752,1926.5,1924.6,4.3626196]
[1773007641582,5.71406752,1926.5,1924.8,4.27103089]
[1773007641879,5.71897926,1926.5,1924.8,4.27103089]
[1773007642777,5.71406752,1925.9,1924.5,4.1773743]
[1773007642983,5.71406752,1926.4,1924.5,4.1773743]
[1773007643176,0.00491174,1926.5,1924.0,28.61653375]
[1773007643177,5.71406752,1925.7,1924.6,5.90693345]
[1773007643382,5.71406752,1925.7,1924.3,3.97416719]
[1773007645184,5.71406752,1925.7,1923.8,3.88296515]
[1773007646581,12.48706752,1925.7,1923.8,3.88296515]
[1773007646782,5.71406752,1925.6,1923.8,3.88296515]
[1773007647688,5.71406752,1925.6,1923.9,3.53463742]
[1773007648284,5.71406752,1925.4,1923.6,3.54052631]
[1773007648686,5.71406752,1925.4,1923.8,3.44694608]
[1773007648989,5.71406752,1925.4,1924.0,3.44694608]
[1773007651786,5.71406752,1925.4,1923.7,3.1849266]
[1773007653483,4.43973596,1925.2,1923.7,3.1849266]
[1773007654592,4.43973596,1925.2,1923.6,0.00588889]
[1773007654892,4.43973596,1925.2,1923.6,2.93070482]
[1773007655484,4.43973596,1925.2,1923.6,21.67192185]
[1773007655791,4.43973596,1925.2,1923.7,2.8473105]
[1773007655995,4.43973596,1925.2,1923.8,2.8473105]
[1773007656394,4.43973596,1925.2,1923.9,21.50621952]
[1773007656597,4.43973596,1925.2,1923.9,18.74121703]
[1773007657192,4.43973596,1925.2,1923.9,2.76500249]
[1773007657895,4.43973596,1925.2,1923.9,21.50621952]
[1773007658199,4.43973596,1925.2,1924.0,2.65956918]
[1773007659298,4.43973596,1926.0,1924.2,2.57020382]
[1773007659497,4.43973596,1926.3,1925.0,18.74121703]
[1773007659695,4.43973596,1926.3,1925.2,2.49098454]
[1773007659990,0.00491174,1926.5,1925.4,2.49098454]
[1773007660391,0.11746457,1926.9,1925.6,2.49022261]
[1773007660594,4.43973596,1928.5,1925.6,2.49022261]
[1773007660792,4.43973596,1928.5,1925.8,2.28902269]
[1773007660993,4.43973596,1928.5,1926.0,2.28902269]
[1773007661193,4.43973596,1928.5,1926.9,2.28902269]
[1773007661391,4.44460121,1928.5,1927.0,7.221]
[1773007661603,4.44460121,1928.5,1927.0,9.49227984]
[1773007661808,4.44460121,1928.5,1927.1,2.27127984]
[1773007662806,4.44460121,1928.5,1927.2,7.61531006]
[1773007663003,0.00486525,1928.5,1927.3,2.19268777]
[1773007663204,4.44460121,1928.5,1927.3,2.19268777]
[1773007664004,4.43973596,1928.8,1927.3,2.19268777]
[1773007664204,4.43973596,1929.6,1927.3,2.19268777]
[1773007664806,4.43973596,1929.4,1927.3,2.19268777]
[1773007665005,4.43973596,1928.8,1926.9,0.00486122]
[1773007665203,4.43973596,1928.6,1927.1,2.04624298]
[1773007665409,0.26550491,1929.4,1927.1,2.04624298]
[1773007665410,4.43973596,1929.3,1927.2,1.93666102]
[1773007665906,4.43973596,1929.3,1927.4,1.86105727]
[1773007666308,4.43973596,1929.1,1927.4,1.86105727]
[1773007666509,0.00634491,1929.4,1927.5,1.78606722]
[1773007666510,4.43973596,1928.9,1927.5,1.78606722]
[1773007666705,4.43973596,1929.3,1927.6,1.78606722]
[1773007667105,4.43973596,1929.3,1927.5,5.97124124]
[1773007667106,0.00634491,1929.4,1927.8,1.78606722]
[1773007667508,4.43973596,1930.5,1928.5,1.69260377]
[1773007667711,4.43973596,1930.5,1928.7,1.69260377]
[1773007668204,4.43973596,1930.5,1928.4,40.8]
[1773007668205,4.43973596,1930.5,1928.9,1.69260377]
[1773007668404,0.00497855,1930.5,1928.9,1.69923023]
[1773007668706,4.44471451,1930.5,1929.1,1.61933667]
[1773007669104,4.44471451,1930.5,1928.9,0.00662646]
[1773007669105,4.45252923,1930.8,1929.3,1.61933667]
[1773007669714,0.01279327,1930.8,1929.5,1.49477606]
[1773007669910,4.45252923,1930.8,1929.5,1.49477606]
[1773007670110,4.45820906,1930.8,1929.5,1.49477606]
[1773007670412,4.45820906,1930.8,1929.2,8.64599486]
[1773007670606,4.45820906,1930.8,1929.3,1.42299486]
[1773007671001,4.45820906,1930.8,1929.4,1.42299486]
[1773007671206,0.0184731,1930.8,1929.4,1.42299486]
[1773007671511,4.43973596,1931.2,1929.6,1.39576658]
[1773007671707,4.43973596,1931.5,1929.6,1.39576658]
[1773007671912,4.43973596,1931.5,1929.8,1.32373712]
[1773007672210,4.43973596,1931.5,1930.0,1.32373712]
[1773007672408,4.44454745,1931.5,1930.2,1.32424615]
[1773007672608,0.00481149,1931.5,1930.2,1.32424615]
[1773007672809,4.44454745,1931.5,1930.4,1.25403322]
[1773007673007,4.44454745,1931.5,1930.4,0.00562285]
[1773007674910,4.43973596,1930.9,1930.4,0.00562285]
[1773007675222,4.43973596,1930.9,1929.4,0.001]
[1773007675413,4.69869596,1930.9,1929.4,0.001]
[1773007676018,4.69869596,1930.9,1928.5,1.09494384]
[1773007676711,4.43973596,1930.9,1928.5,1.09494384]
[1773007676913,4.43973596,1930.7,1928.5,1.09494384]
[1773007677113,4.43973596,1930.7,1928.5,1.10146049]
[1773007677308,4.43973596,1930.3,1928.5,1.10146049]
[1773007678515,4.43973596,1930.3,1928.5,1.00576404]
[1773007679214,4.43973596,1930.3,1928.7,0.99924739]
[1773007680417,4.43973596,1930.1,1928.5,0.00651665]
[1773007680621,4.44570667,1930.1,1928.5,0.98924469]
[1773007680923,4.44570667,1930.1,1928.7,0.98272804]
[1773007681123,0.00597071,1930.1,1928.7,0.98272804]
[1773007681422,4.43973596,1930.9,1928.9,0.98272804]
[1773007681822,4.43973596,1930.7,1929.0,6.28218959]
[1773007682025,4.43973596,1930.5,1929.0,0.79358948]
[1773007682219,4.43973596,1930.5,1929.1,7.216]
[1773007682419,4.44480132,1930.5,1929.2,0.79257905]
[1773007682624,0.00506536,1930.5,1929.2,0.79257905]
[1773007682925,3.19549644,1930.5,1929.2,0.68364426]
[1773007683115,3.19549644,1930.5,1929.3,41.48364426]
[1773007683322,3.19549644,1930.5,1929.3,0.68364426]
[1773007684526,0.00506536,1930.5,1929.3,0.68364426]
[1773007684727,0.00506536,1930.5,1928.8,44.90238595]
[1773007684728,0.00506536,1930.5,1929.5,0.53126605]
[1773007685321,0.00506536,1930.5,1929.6,7.69892702]
[1773007685726,3.19549644,1930.5,1929.0,0.41920797]
[1773007686027,3.15500707,1930.1,1928.7,0.39558398]
[1773007686231,3.15500707,1930.1,1928.5,0.00651665]
[1773007686431,3.15500707,1929.9,1928.5,0.00651665]
[1773007687128,3.15500707,1929.9,1928.5,0.33764042]
[1773007687534,3.15500707,1929.9,1928.5,0.00651665]
[1773007687832,3.15500707,1929.9,1928.5,0.2754403]
[1773007688333,3.15500707,1929.9,1928.5,0.00651665]
[1773007689130,3.15500707,1929.9,1928.5,0.21198486]
[1773007690129,3.15500707,1929.7,1928.5,0.00651665]
[1773007690327,0.25913,1929.6,1928.5,0.00651665]
[1773007690526,3.15500707,1929.3,1927.7,7.21]
[1773007690729,3.15500707,1929.1,1927.7,7.32705569]
[1773007690929,3.15500707,1929.1,1927.7,7.21]
[1773007691138,3.15500707,1929.1,1927.8,0.11705569]
[1773007691438,3.15500707,1929.1,1927.8,0.00669307]
[1773007691439,3.15500707,1928.9,1927.8,0.00669307]
[1773007691729,3.41422707,1928.9,1927.8,0.00669307]
[1773007692134,0.25924,1928.8,1927.8,0.06279548]
[1773007692330,0.00538624,1929.1,1927.8,0.06279548]
[1773007692527,0.25921,1929.0,1927.8,0.06279548]
[1773007692937,0.25928,1928.5,1927.8,0.06279548]
[1773007693135,0.26458624,1929.1,1927.8,0.00669307]
[1773007693328,3.41427707,1928.6,1927.9,5.48887043]
[1773007693531,0.25927,1928.6,1927.8,0.00669307]
[1773007694436,3.15500707,1929.0,1927.8,0.00669307]
[1773007694835,3.41422707,1928.9,1927.8,0.00669307]
[1773007695726,0.00538624,1929.1,1927.9,4.08322148]
[1773007695926,0.00538624,1929.1,1927.9,10.05640557]
[1773007696532,3.16039331,1929.1,1927.9,10.05640557]
[1773007696734,3.16039331,1929.1,1927.9,4.08322148]
[1773007697236,0.25907,1930.1,1927.9,4.08322148]
[1773007697237,3.15500707,1929.5,1928.0,5.59518811]
[1773007697830,3.15500707,1930.0,1928.3,4.08322148]
[1773007698033,3.16133426,1930.0,1928.4,7.202]
[1773007698233,3.16133426,1930.0,1928.4,13.09069331]
[1773007698634,3.16133426,1930.0,1928.7,4.08322148]
[1773007698830,3.15500707,1930.3,1929.1,4.08322148]
[1773007699036,3.15500707,1930.3,1928.9,4.08322148]
[1773007699231,3.15500707,1930.3,1929.2,5.71889821]
[1773007699432,3.15500707,1930.3,1929.0,5.71889821]
[1773007699632,3.15500707,1930.9,1929.4,4.08322148]
[1773007699934,0.00294172,1931.0,1930.2,4.08322148]
[1773007700131,3.15500707,1931.2,1929.4,0.00366117]
[1773007700434,3.15500707,1931.2,1929.6,5.54433542]
[1773007700635,3.15500707,1931.2,1929.6,9.6275569]
[1773007700832,3.15500707,1931.2,1929.7,40.8]
[1773007701034,3.161014,1931.2,1929.7,40.8]
[1773007701238,3.161014,1931.2,1929.8,5.50774902]
[1773007701834,3.161014,1931.2,1929.4,18.7448782]
[1773007702242,3.161014,1931.2,1929.5,5.45406883]
[1773007702433,3.15500707,1931.0,1929.4,0.00366117]
[1773007703238,3.15500707,1930.7,1929.4,0.00366117]
[1773007704043,3.15500707,1930.5,1928.5,18.74121703]
[1773007704942,3.15500707,1930.5,1928.5,18.747738]
[1773007705545,3.15500707,1930.5,1928.5,0.00652097]
[1773007706343,3.15500707,1930.5,1928.5,18.747738]
[1773007707047,3.15500707,1930.5,1928.8,4.08322148]
[1773007707240,3.15500707,1930.5,1928.7,18.74121703]
[1773007707845,3.15500707,1930.5,1928.5,0.00652097]
[1773007708150,3.15500707,1930.5,1928.6,7.208]
[1773007710950,3.15500707,1930.5,1928.7,5.75779205]
[1773007711155,3.15500707,1930.5,1928.6,7.208]
[1773007712346,3.15500707,1930.5,1928.9,4.08322148]
[1773007712650,3.15500707,1930.5,1928.6,7.208]
[1773007712851,3.15500707,1930.5,1928.8,18.74121703]
[1773007713252,3.15500707,1930.5,1928.9,9.71106847]
[1773007713651,3.15500707,1930.5,1928.9,28.4522855]
[1773007714955,3.15500707,1930.5,1929.3,4.08322148]
[1773007715156,3.15500707,1930.5,1929.4,7.239]
[1773007718164,3.41402707,1930.5,1929.4,6.02375222]
[1773007718354,3.41402707,1930.5,1928.9,7.256]
[1773007720465,3.41402707,1930.5,1928.7,18.74121703]
[1773007720765,2.43757151,1930.0,1928.7,18.74121703]
[1773007720955,2.43757151,1930.0,1928.6,18.74121703]
[1773007721762,2.43757151,1930.0,1928.7,18.74121703]
[1773007722465,2.43757151,1930.0,1928.8,18.74121703]
[1773007723366,2.43757151,1930.0,1928.7,18.74121703]
[1773007724059,2.43757151,1930.0,1928.8,18.74121703]
[1773007725672,2.43757151,1930.0,1928.7,18.74121703]
[1773007726569,2.43757151,1930.0,1928.8,18.74121703]
[1773007727068,2.43757151,1930.0,1928.9,7.291]
[1773007727268,2.43757151,1930.0,1928.8,18.74121703]
[1773007729173,2.43757151,1930.0,1928.6,18.74121703]
[1773007729869,2.43757151,1930.0,1928.8,18.74121703]
[1773007730173,2.41541928,1931.1,1929.0,4.08322148]
[1773007730471,2.41541928,1931.1,1929.1,21.41853375]
[1773007730673,2.41541928,1931.1,1929.5,18.74121703]
[1773007730877,2.41541928,1931.1,1929.6,7.308]
[1773007732073,2.4186559,1930.7,1929.5,26.05521703]
[1773007732965,2.4186559,1930.7,1929.7,18.74121703]
[1773007733773,2.4186559,1930.7,1929.8,18.74121703]
[1773007734773,2.4186559,1930.7,1929.6,26.06721703]
[1773007735766,2.4186559,1930.7,1929.6,26.06821703]
[1773007736273,2.42083265,1930.5,1929.6,7.327]
[1773007737767,2.42083265,1930.5,1929.6,0.001]
[1773007737968,2.42083265,1930.5,1929.6,7.347]
[1773007739571,2.42083265,1930.5,1929.6,26.08821703]
[1773007741576,2.40283042,1931.0,1929.6,26.08821703]
[1773007741971,2.40283042,1931.0,1929.9,18.74121703]
[1773007742172,2.40283042,1931.0,1929.9,18.74497749]
[1773007742478,2.40389029,1931.5,1930.2,4.08322148]
[1773007742774,2.40389029,1931.5,1930.7,18.74121703]
[1773007742972,0.75310793,1931.7,1930.7,18.74121703]
[1773007743367,0.47948339,1931.7,1930.7,18.74121703]
[1773007743569,0.39946819,1931.7,1930.9,18.74121703]
[1773007743777,0.39946819,1931.7,1931.0,7.381]
[1773007743973,2.92725709,1931.7,1930.9,18.74121703]
[1773007744178,2.92725709,1931.7,1931.0,7.384]
[1773007744376,0.39946819,1931.7,1931.0,7.384]
[1773007744574,2.92681676,1931.7,1930.8,18.74121703]
[1773007744876,0.39946819,1931.7,1930.9,7.388]
[1773007745079,2.92681676,1931.7,1930.9,7.388]
[1773007745470,2.92681676,1931.7,1930.8,7.393]
[1773007745973,2.55727974,1931.5,1930.4,21.41853375]
[1773007746278,2.55727974,1931.5,1930.6,7.396]
[1773007746576,2.95564758,1931.7,1930.7,7.398]
[1773007746878,2.95564758,1931.7,1930.8,7.401]
[1773007747175,0.39946819,1931.7,1930.9,7.402]
[1773007747374,2.55617939,1932.1,1931.0,4.08322148]
[1773007747572,2.55617939,1932.1,1930.9,26.14321703]
[1773007748279,2.56267554,1932.1,1930.9,7.402]
[1773007748978,2.5848466,1932.1,1930.9,7.402]
[1773007749186,2.5848466,1932.1,1931.0,7.418]
[1773007749680,2.5848466,1932.1,1931.1,7.42]
[1773007749875,2.58036067,1931.9,1931.1,7.42]
[1773007750575,2.58036067,1931.9,1930.3,40.8]
[1773007750778,2.57924741,1931.7,1930.4,7.429]
[1773007751975,2.57399942,1932.0,1930.4,11.51222148]
[1773007752579,2.57399942,1932.0,1930.4,30.25343851]
[1773007753283,2.57399942,1932.0,1930.4,26.17021703]
[1773007753482,2.57399942,1932.0,1930.4,7.429]
[1773007753678,2.57179295,1931.8,1930.4,7.429]
[1773007756182,0.25885,1931.7,1930.2,18.74121703]
[1773007756387,2.56655013,1931.4,1930.3,7.464]
[1773007756684,0.25887,1931.5,1930.3,7.464]
[1773007756685,2.56655013,1931.0,1930.3,7.464]
[1773007757283,2.56655013,1930.8,1929.9,0.00376046]
[1773007757490,2.52585899,1930.6,1929.9,0.00376046]
[1773007757683,2.52980481,1930.6,1929.9,0.00376046]
[1773007763590,2.51365268,1930.4,1929.9,0.00376046]
[1773007763795,2.51365268,1930.4,1929.6,0.001]
[1773007764795,2.51365268,1930.4,1929.6,0.00578355]
[1773007769196,2.50975017,1930.2,1929.4,7.494]
[1773007770294,2.50812925,1930.0,1929.1,18.74121703]
[1773007770498,2.50812925,1930.0,1928.6,47.66375078]
[1773007771200,2.50812925,1930.0,1928.7,18.74121703]
[1773007771502,0.25909,1929.9,1928.7,18.74500643]
[1773007771800,2.51442454,1929.8,1928.7,18.74500643]
[1773007771994,2.51442454,1929.8,1928.7,0.0037894]
[1773007773596,0.00394582,1930.6,1928.7,0.0037894]
[1773007773597,2.51366021,1929.6,1928.7,0.0037894]
[1773007775192,2.51327612,1930.2,1928.7,7.5247894]
[1773007775800,2.51327612,1930.2,1928.7,0.0037894]
[1773007775995,2.51327612,1930.2,1928.8,7.523]
[1773007776201,2.51926616,1930.0,1928.7,0.0037894]
[1773007776401,2.51878806,1929.8,1928.7,0.0037894]
[1773007778206,2.51878806,1929.8,1928.8,7.529]
[1773007778509,2.51878806,1929.8,1928.7,7.5327894]
[1773007778709,0.25912,1929.7,1928.7,0.0037894]
[1773007778912,2.51072568,1929.4,1928.1,21.41853375]
[1773007779706,2.51072568,1929.4,1928.3,18.74121703]
[1773007779913,2.51072568,1929.4,1928.3,21.96718808]
[1773007780109,2.51597151,1930.0,1928.3,21.96718808]
[1773007780311,2.51597151,1930.0,1928.7,3.22158266]
[1773007780506,2.51597151,1930.0,1928.8,26.27821703]
[1773007780809,2.51552959,1929.3,1928.3,18.74560542]
[1773007781009,2.51552959,1929.1,1927.7,18.74121703]
[1773007781203,2.51552959,1929.1,1927.7,21.96279969]
[1773007781409,1.27549404,1929.3,1928.1,3.22158266]
[1773007781606,1.27549404,1929.3,1928.2,7.542]
[1773007781813,1.27549404,1929.3,1928.2,26.28321703]
[1773007782013,1.28114654,1929.3,1928.2,18.74600254]
[1773007782207,1.28114654,1929.3,1928.3,7.545]
[1773007782408,0.0056525,1929.3,1928.3,7.545]
[1773007782612,0.0056525,1929.3,1928.5,18.74121703]
[1773007783308,1.27785818,1929.6,1928.5,18.74121703]
[1773007783509,1.27785818,1929.6,1928.6,7.55]
[1773007783912,1.29772189,1930.9,1929.0,3.22158266]
[1773007784112,1.29772189,1930.9,1929.1,18.74121703]
[1773007784309,1.30222786,1930.9,1929.1,18.74121703]
[1773007784514,1.29666373,1930.7,1929.1,18.67021703]
[1773007784814,3.22158266,1930.8,1928.6,28.97653375]
[1773007784815,1.29666373,1930.1,1928.6,28.97653375]
[1773007785717,1.29666373,1930.1,1928.7,13.00133388]
[1773007785913,1.28616924,1929.4,1928.2,0.00478551]
[1773007786110,1.2909186,1929.4,1928.3,5.60587507]
[1773007786306,1.2909186,1929.4,1928.2,0.00478551]
[1773007787511,1.2909186,1929.4,1928.3,1.09531278]
[1773007787716,1.37507147,1929.6,1928.3,4.31689544]
[1773007787917,1.37507147,1929.6,1928.4,1.09531278]
[1773007788415,1.37507147,1929.6,1928.3,8.67131278]
[1773007788612,1.37507147,1929.6,1928.4,1.09531278]
[1773007788816,1.37876716,1929.6,1928.3,7.578]
[1773007789016,1.37876716,1929.6,1928.4,1.09531278]
[1773007792112,1.37876716,1929.6,1928.5,7.589]
[1773007792316,1.36281233,1929.4,1928.2,0.00478551]
[1773007792513,1.36281233,1929.4,1928.2,1.10009829]
[1773007793515,1.36281233,1929.4,1928.3,7.594]
[1773007794121,1.36281233,1929.4,1928.3,8.68931278]
[1773007794621,1.36281233,1929.4,1928.2,0.00578551]
[1773007794816,1.36281233,1929.4,1928.3,7.598]
[1773007795016,1.36281233,1929.4,1928.3,8.69331278]
[1773007795418,1.36281233,1929.4,1928.4,1.09531278]
[1773007797029,1.36312598,1929.6,1928.4,1.09531278]
[1773007797924,1.36312598,1929.6,1927.8,3.22158266]
[1773007797925,0.00370111,1928.9,1927.3,1.8995898]
[1773007798129,0.00370111,1928.7,1927.4,1.8995898]
[1773007798625,0.00370111,1928.7,1927.5,13.66120945]
[1773007798926,0.01979706,1928.5,1927.1,1.90028944]
[1773007799125,0.01979706,1928.5,1927.2,15.56364225]
[1773007799319,0.01979706,1928.5,1927.2,1.9024328]
[1773007799523,0.00361658,1928.1,1926.9,22.17102468]
[1773007799725,0.00361658,1928.1,1926.4,34.55720077]
[1773007799726,0.00361658,1928.1,1927.0,13.66120945]
[1773007799927,0.00361658,1928.1,1927.1,2.70984354]
[1773007799928,0.00805868,1928.1,1927.1,2.70984354]
[1773007800129,0.00361658,1928.0,1927.0,0.00647874]
[1773007800625,0.00361658,1928.0,1927.0,13.66120945]
[1773007800831,0.00361658,1928.0,1927.1,2.70850501]
[1773007801128,0.00361658,1928.0,1926.5,2.70850501]
[1773007801321,0.00361658,1928.0,1926.6,2.74067235]
[1773007801528,0.00361658,1928.0,1926.6,2.74676217]
[1773007801826,0.00361658,1928.0,1926.7,13.66120945]
[1773007802028,0.00361658,1928.0,1926.8,2.74067235]
[1773007802422,0.0044421,1928.1,1927.3,2.74255225]
[1773007802628,0.25921,1929.1,1927.5,2.74255225]
[1773007802819,0.25924,1928.8,1927.2,2.74255225]
[1773007803020,0.25924,1928.8,1926.9,16.4037617]
[1773007803531,0.26553792,1928.8,1926.9,16.4037617]
[1773007803730,0.26553792,1928.8,1927.0,2.75567375]
[1773007803926,0.25913,1929.6,1927.0,2.75567375]
[1773007804128,0.25913,1929.6,1927.3,2.75567375]
[1773007804726,3.22158266,1930.0,1927.7,2.75716172]
[1773007805024,0.00492298,1930.0,1928.7,2.75716172]
[1773007805230,0.00492298,1930.0,1928.9,2.75716172]
[1773007805423,0.04016222,1929.9,1928.9,2.75716172]
[1773007805622,0.04016222,1929.9,1929.1,2.67692671]
[1773007805822,0.00492298,1930.0,1929.1,2.67692671]
[1773007806030,0.00492298,1930.0,1929.3,2.67692671]
[1773007806225,3.48047266,1931.5,1929.5,2.67692671]
[1773007806433,0.25889,1931.5,1929.7,2.68030205]
[1773007806734,3.31174686,1931.1,1929.5,2.68030205]
[1773007807129,3.31174686,1931.1,1929.7,2.68030205]
[1773007807434,0.00420078,1931.1,1929.7,2.68030205]
[1773007807833,0.00420078,1931.1,1929.9,2.72264107]
[1773007808045,0.25876,1932.4,1929.9,2.72264107]
[1773007808337,0.25882,1932.0,1930.1,2.72054068]
[1773007808831,0.09012485,1932.1,1930.3,2.72269595]
[1773007809034,0.00606084,1932.1,1930.5,2.72269595]
[1773007809432,0.00606084,1932.1,1930.8,2.75150491]
[1773007809934,0.00606084,1932.1,1931.0,2.75150491]
[1773007810135,0.00606084,1932.1,1931.1,13.66120945]
[1773007810337,0.26487084,1932.1,1931.1,13.66120945]
[1773007810736,0.26487084,1932.1,1930.6,2.7534284]
[1773007810934,0.26487084,1932.1,1930.7,2.7534284]
[1773007811335,0.26487084,1932.1,1930.4,2.7534284]
[1773007811336,0.25888,1931.5,1930.4,2.7534284]
[1773007811539,0.25888,1931.5,1930.3,0.00434064]
[1773007811838,0.25888,1931.5,1930.3,13.66555009]
[1773007812434,0.25888,1931.5,1930.4,2.73968291]
[1773007812634,4.07541757,1931.3,1928.8,2.73968291]
[1773007812933,0.259,1930.6,1929.1,2.73968291]
[1773007813136,0.259,1930.6,1928.8,2.73968291]
[1773007813639,0.26422473,1930.6,1928.8,2.74560026]
[1773007813939,0.26422473,1930.6,1929.0,2.74097904]
[1773007814827,0.26422473,1930.6,1929.2,2.74107725]
[1773007815633,0.26422473,1930.6,1929.4,2.74539139]
[1773007816030,0.00522473,1930.6,1929.6,2.74539139]
[1773007816337,1.65909985,1932.4,1930.0,2.74539139]
[1773007816738,1.65909985,1932.4,1930.2,2.74741554]
[1773007817235,1.664202,1932.4,1930.2,2.7527695]
[1773007817435,1.664202,1932.4,1930.3,15.83508724]
[1773007817631,4.33426954,1931.7,1930.3,15.83508724]
[1773007817936,0.25885,1931.7,1930.4,2.73687715]
[1773007818242,0.25877,1932.3,1930.7,2.73687715]
[1773007818442,0.00510215,1932.4,1930.9,2.73896983]
[1773007818740,0.00510215,1932.4,1931.3,2.73896983]
[1773007818937,0.25877,1932.3,1931.3,2.73896983]
[1773007819240,0.25877,1932.3,1930.6,2.73896983]
[1773007819440,0.25877,1932.3,1930.7,2.69665776]
[1773007819836,0.25877,1932.3,1931.1,2.69665776]
[1773007820140,0.00510215,1932.4,1931.1,2.69665776]
[1773007820339,0.00510215,1932.4,1931.3,5.28865776]
[1773007820536,0.00510215,1932.4,1931.4,2.69912504]
[1773007820942,0.00510215,1932.4,1931.7,2.69912504]
[1773007821142,0.00510215,1932.4,1931.7,2.70561962]
[1773007821342,0.00510215,1932.4,1931.9,5.28883779]
[1773007821538,0.00510215,1932.4,1931.9,2.69683779]
[1773007821739,0.09006433,1933.1,1932.1,2.69683779]
[1773007821939,0.25861,1933.5,1932.2,2.69683779]
[1773007822245,0.09003881,1933.8,1932.2,2.69683779]
[1773007822443,0.25853,1934.1,1932.4,2.69932407]
[1773007822847,0.00554384,1934.1,1933.2,2.69932407]
[1773007823141,0.01109417,1934.2,1933.2,2.70481101]
[1773007823336,0.01109417,1934.2,1933.5,2.70534656]
[1773007823540,0.01109417,1934.2,1933.6,13.09821009]
[1773007824041,0.01511509,1934.2,1933.6,15.69021009]
[1773007824242,0.01511509,1934.2,1933.6,13.09821009]
[1773007824443,0.01511509,1934.2,1933.6,15.80599107]
[1773007824639,0.25843,1934.8,1934.1,5.29978098]
[1773007824841,0.08996816,1935.3,1934.1,2.70778098]
[1773007825043,0.08996816,1935.3,1934.2,13.09821009]
[1773007825246,0.25838,1935.2,1934.2,12.52950009]
[1773007825644,0.26253251,1935.2,1934.2,12.52950009]
[1773007826744,0.25846,1934.7,1933.8,2.71575239]
[1773007826941,4.07541954,1934.5,1933.5,2.71805482]
[1773007827145,0.25852,1934.2,1933.2,2.72354176]
[1773007827537,0.25852,1934.2,1933.2,5.31554176]
[1773007827743,0.25852,1934.2,1933.2,2.72354176]
[1773007828244,0.25859,1933.7,1933.2,5.31554176]
[1773007828443,0.26289535,1933.7,1932.9,2.67753752]
[1773007828639,0.2585,1934.3,1933.3,2.67753752]
[1773007828844,0.25842,1935.0,1933.3,2.67753752]
[1773007829146,0.25848,1934.5,1933.3,2.67753752]
[1773007829643,0.26314293,1934.5,1933.4,2.7067973]
[1773007830047,0.26314293,1934.5,1933.5,5.2987973]
[1773007830243,0.26314293,1934.5,1933.6,2.7067973]
[1773007830839,0.26314293,1934.5,1933.3,2.71421976]
[1773007830840,0.2585,1934.3,1933.3,2.71421976]
[1773007831044,0.38297784,1933.9,1932.2,2.49065914]
[1773007831244,0.25868,1933.0,1932.3,2.49065914]
[1773007831548,0.25875,1932.4,1931.0,2.49065914]
[1773007831852,0.25875,1932.4,1931.5,2.49065914]
[1773007832045,2.8048227,1933.0,1931.5,2.49065914]
[1773007832247,0.26260356,1933.0,1931.9,2.49065914]
[1773007832646,2.80874626,1933.0,1931.9,2.49065914]
[1773007833151,0.25875,1932.5,1931.6,2.59925976]
[1773007833350,0.00392356,1933.0,1931.8,2.59925976]
[1773007833749,0.00392356,1933.0,1932.4,5.19125976]
[1773007833946,0.25859,1933.6,1932.5,2.59925976]
[1773007834144,0.25852,1934.2,1932.5,2.59925976]
[1773007834348,2.92451426,1934.2,1933.0,2.59925976]
[1773007834855,2.92451426,1934.2,1932.3,2.59925976]
[1773007835046,2.92453426,1934.0,1932.3,2.59925976]
[1773007835248,2.92453426,1934.0,1932.6,2.59925976]
[1773007835843,2.90355186,1933.5,1932.2,2.59925976]
[1773007836046,0.25869,1932.9,1932.2,2.59925976]
[1773007836248,2.92468426,1932.9,1932.1,0.00394614]
[1773007836950,2.92468426,1932.9,1932.2,2.592]
[1773007837154,2.92468426,1932.9,1932.1,0.00394614]
[1773007837155,2.92468426,1932.9,1932.1,2.6032059]
[1773007837353,0.25869,1932.9,1932.1,2.6032059]
[1773007837555,2.66599426,1933.2,1932.1,2.6032059]
[1773007837754,2.92460426,1933.5,1932.1,2.6032059]
[1773007837949,0.25861,1933.5,1932.6,2.59925976]